[Event "Titled Tuesday Blitz January 25 2022"]
[White "Golubka, Petro"]
[Black "Rozhkov, Viacheslav"]
[WhiteFideId "14114224"]
[BlackFideId "4181484"]
[WhiteElo "2392"]
[BlackElo "2324"]
[Result "1-0"]
[Round "06"]
[TimeControl "180+1"]
[Date "2022.01.26"]
[WhiteClock "0:00:31"]
[BlackClock "0:00:19"]

1. d4 {[%clk 0:03:00]}  d5 {[%clk 0:02:59]} 2. Nf3 {[%clk 0:02:59]}  Nf6 {[%clk 0:02:59]} 3. Bf4 {[%clk 0:02:58]}  e6 {[%clk 0:02:59]} 4. e3 {[%clk 0:02:58]}  Bd6 {[%clk 0:02:59]} 5. Bg5 {[%clk 0:02:57]}  h6 {[%clk 0:02:59]} 6. Bh4 {[%clk 0:02:57]}  Be7 {[%clk 0:02:55]} 7. Nc3 {[%clk 0:02:57]}  Ne4 {[%clk 0:02:55]} 8. Bxe7 {[%clk 0:02:55]}  Qxe7 {[%clk 0:02:54]} 9. Nxe4 {[%clk 0:02:55]}  dxe4 {[%clk 0:02:55]} 10. Nd2 {[%clk 0:02:56]}  f5 {[%clk 0:02:55]} 11. f3 {[%clk 0:02:56]}  O-O {[%clk 0:02:44]} 12. Bc4 {[%clk 0:02:53]}  exf3 {[%clk 0:02:04]} 13. Qxf3 {[%clk 0:02:50]}  Bd7 {[%clk 0:01:40]} 14. O-O-O {[%clk 0:02:40]}  Nc6 {[%clk 0:01:35]} 15. h4 {[%clk 0:02:35]}  Kh8 {[%clk 0:01:28]} 16. c3 {[%clk 0:02:29]}  e5 {[%clk 0:01:28]} 17. g3 {[%clk 0:02:22]}  e4 {[%clk 0:01:27]} 18. Qf4 {[%clk 0:02:21]}  a6 {[%clk 0:01:14]} 19. Qxc7 {[%clk 0:02:16]}  Rfc8 {[%clk 0:01:13]} 20. Qb6 {[%clk 0:02:11]}  a5 {[%clk 0:00:46]} 21. Kb1 {[%clk 0:02:08]}  a4 {[%clk 0:00:45]} 22. Be2 {[%clk 0:01:45]}  Na5 {[%clk 0:00:30]} 23. Rhg1 {[%clk 0:01:41]}  a3 {[%clk 0:00:30]} 24. Qb4 {[%clk 0:01:37]}  Qxb4 {[%clk 0:00:29]} 25. cxb4 {[%clk 0:01:37]}  Nc6 {[%clk 0:00:29]} 26. bxa3 {[%clk 0:01:31]}  Rxa3 {[%clk 0:00:29]} 27. Nc4 {[%clk 0:01:31]}  Ra4 {[%clk 0:00:27]} 28. a3 {[%clk 0:01:30]}  Nxb4 {[%clk 0:00:26]} 29. Nb6 {[%clk 0:01:26]}  Rxa3 {[%clk 0:00:25]} 30. Nxc8 {[%clk 0:01:08]}  Bxc8 {[%clk 0:00:25]} 31. Rc1 {[%clk 0:01:03]}  Be6 {[%clk 0:00:25]} 32. Bc4 {[%clk 0:01:02]}  Bxc4 {[%clk 0:00:24]} 33. Rxc4 {[%clk 0:01:03]}  Rb3+ {[%clk 0:00:24]} 34. Ka1 {[%clk 0:00:59]}  Nd5 {[%clk 0:00:23]} 35. Rb1 {[%clk 0:00:54]}  Ra3+ {[%clk 0:00:22]} 36. Kb2 {[%clk 0:00:54]}  Rxe3 {[%clk 0:00:23]} 37. Rc5 {[%clk 0:00:52]}  Re2+ {[%clk 0:00:22]} 38. Ka3 {[%clk 0:00:53]}  Nf6 {[%clk 0:00:22]} 39. Rb3 {[%clk 0:00:49]}  Rf2 {[%clk 0:00:20]} 40. Rxb7 {[%clk 0:00:46]}  e3 {[%clk 0:00:20]} 41. Re5 {[%clk 0:00:41]}  Ne4 {[%clk 0:00:19]} 42. Re8+ {[%clk 0:00:38]}  Kh7 {[%clk 0:00:19]} 43. Ree7 {[%clk 0:00:38]}  e2 {[%clk 0:00:19]} 44. Rxg7+ {[%clk 0:00:38]}  Kh8 {[%clk 0:00:20]} 45. Rh7+ {[%clk 0:00:33]}  Kg8 {[%clk 0:00:19]} 46. Rhd7 {[%clk 0:00:32]}  Nf6 {[%clk 0:00:19]} 47. Rd8+ {[%clk 0:00:31]} 1-0


[Site "https://www.chess.com"]

[Event "Titled Tuesday Blitz January 25 2022"]
[White "Goryachkina, Aleksandra"]
[Black "Di Nicolantonio, Lucas"]
[WhiteFideId "4147103"]
[BlackFideId "680460"]
[WhiteElo "2426"]
[BlackElo "2381"]
[Result "1/2-1/2"]
[Round "06"]
[TimeControl "180+1"]
[Date "2022.01.26"]
[WhiteClock "0:00:10"]
[BlackClock "0:00:06"]

1. e4 {[%clk 0:02:59]}  g6 {[%clk 0:02:58]} 2. d4 {[%clk 0:02:57]}  Bg7 {[%clk 0:02:59]} 3. Nf3 {[%clk 0:02:57]}  d6 {[%clk 0:02:59]} 4. Nbd2 {[%clk 0:02:51]}  Nf6 {[%clk 0:02:55]} 5. Bd3 {[%clk 0:02:51]}  O-O {[%clk 0:02:55]} 6. O-O {[%clk 0:02:50]}  Nc6 {[%clk 0:02:54]} 7. Re1 {[%clk 0:02:48]}  e5 {[%clk 0:02:54]} 8. c3 {[%clk 0:02:46]}  h6 {[%clk 0:02:54]} 9. h3 {[%clk 0:02:43]}  Re8 {[%clk 0:02:51]} 10. Nf1 {[%clk 0:02:39]}  Nh5 {[%clk 0:02:46]} 11. Bc2 {[%clk 0:02:27]}  Qf6 {[%clk 0:02:41]} 12. dxe5 {[%clk 0:02:15]}  dxe5 {[%clk 0:02:39]} 13. Ne3 {[%clk 0:02:14]}  Rd8 {[%clk 0:02:04]} 14. Nd5 {[%clk 0:02:12]}  Qd6 {[%clk 0:02:04]} 15. Be3 {[%clk 0:01:56]}  Be6 {[%clk 0:02:00]} 16. Bb3 {[%clk 0:01:49]}  Na5 {[%clk 0:01:52]} 17. Qc1 {[%clk 0:01:27]}  Nxb3 {[%clk 0:01:50]} 18. axb3 {[%clk 0:01:27]}  Bxd5 {[%clk 0:01:32]} 19. exd5 {[%clk 0:01:27]}  Qxd5 {[%clk 0:01:33]} 20. Bxh6 {[%clk 0:01:26]}  Qxb3 {[%clk 0:01:33]} 21. Bxg7 {[%clk 0:01:25]}  Nxg7 {[%clk 0:01:22]} 22. Nxe5 {[%clk 0:01:24]}  Re8 {[%clk 0:01:09]} 23. Qf4 {[%clk 0:01:18]}  Nh5 {[%clk 0:00:54]} 24. Qf3 {[%clk 0:01:14]}  c6 {[%clk 0:00:48]} 25. Re3 {[%clk 0:01:02]}  Qd5 {[%clk 0:00:40]} 26. Qxd5 {[%clk 0:00:55]}  cxd5 {[%clk 0:00:41]} 27. Rd1 {[%clk 0:00:55]}  Rad8 {[%clk 0:00:36]} 28. Kf1 {[%clk 0:00:51]}  Kg7 {[%clk 0:00:32]} 29. Ng4 {[%clk 0:00:41]}  Nf4 {[%clk 0:00:23]} 30. Rxe8 {[%clk 0:00:38]}  Rxe8 {[%clk 0:00:22]} 31. h4 {[%clk 0:00:36]}  Rd8 {[%clk 0:00:14]} 32. g3 {[%clk 0:00:36]}  Ne6 {[%clk 0:00:15]} 33. Ke2 {[%clk 0:00:34]}  d4 {[%clk 0:00:15]} 34. c4 {[%clk 0:00:32]}  Rc8 {[%clk 0:00:14]} 35. b3 {[%clk 0:00:26]}  b5 {[%clk 0:00:14]} 36. cxb5 {[%clk 0:00:24]}  Rc3 {[%clk 0:00:14]} 37. Ne5 {[%clk 0:00:20]}  Rxb3 {[%clk 0:00:13]} 38. Nc6 {[%clk 0:00:17]}  Rxb5 {[%clk 0:00:13]} 39. Nxd4 {[%clk 0:00:16]}  Rb2+ {[%clk 0:00:12]} 40. Kf3 {[%clk 0:00:14]}  Nxd4+ {[%clk 0:00:12]} 41. Rxd4 {[%clk 0:00:14]}  a5 {[%clk 0:00:10]} 42. Rd5 {[%clk 0:00:12]}  a4 {[%clk 0:00:09]} 43. Ra5 {[%clk 0:00:12]}  Rb3+ {[%clk 0:00:09]} 44. Kg2 {[%clk 0:00:12]}  a3 {[%clk 0:00:10]} 45. Ra6 {[%clk 0:00:11]}  Kh6 {[%clk 0:00:10]} 46. Ra7 {[%clk 0:00:10]}  f6 {[%clk 0:00:10]} 47. Ra6 {[%clk 0:00:10]}  f5 {[%clk 0:00:10]} 48. Ra7 {[%clk 0:00:09]}  Rc3 {[%clk 0:00:09]} 49. Ra6 {[%clk 0:00:09]}  Kh5 {[%clk 0:00:09]} 50. Ra4 {[%clk 0:00:09]}  Rb3 {[%clk 0:00:08]} 51. Ra7 {[%clk 0:00:08]}  Kh6 {[%clk 0:00:08]} 52. Kh3 {[%clk 0:00:08]}  f4 {[%clk 0:00:08]} 53. Kg4 {[%clk 0:00:08]}  fxg3 {[%clk 0:00:08]} 54. fxg3 {[%clk 0:00:08]}  Rb4+ {[%clk 0:00:08]} 55. Kh3 {[%clk 0:00:09]}  Rb3 {[%clk 0:00:08]} 56. Kg4 {[%clk 0:00:09]}  Rb4+ {[%clk 0:00:06]} 57. Kh3 {[%clk 0:00:09]}  Rb3 {[%clk 0:00:06]} 58. Kg4 {[%clk 0:00:10]} 1/2-1/2


[Site "https://www.chess.com"]

[Event "Titled Tuesday Blitz January 25 2022"]
[White "Grafil, Franz Robert"]
[Black "Petrovskyi, Vadym"]
[WhiteFideId "5205298"]
[BlackFideId "14165210"]
[WhiteElo "2211"]
[BlackElo "2424"]
[Result "1-0"]
[Round "06"]
[TimeControl "180+1"]
[Date "2022.01.26"]
[WhiteClock "0:00:07"]
[BlackClock "0:00:12"]

1. d4 {[%clk 0:03:00]}  Nf6 {[%clk 0:02:59]} 2. c4 {[%clk 0:03:00]}  g6 {[%clk 0:03:00]} 3. g3 {[%clk 0:03:00]}  Bg7 {[%clk 0:03:00]} 4. Bg2 {[%clk 0:03:00]}  O-O {[%clk 0:03:00]} 5. Nc3 {[%clk 0:03:01]}  d6 {[%clk 0:02:59]} 6. Nf3 {[%clk 0:03:01]}  Nbd7 {[%clk 0:02:59]} 7. O-O {[%clk 0:03:01]}  e5 {[%clk 0:02:59]} 8. e4 {[%clk 0:02:54]}  c6 {[%clk 0:02:59]} 9. Qc2 {[%clk 0:02:52]}  Re8 {[%clk 0:02:57]} 10. Rd1 {[%clk 0:02:52]}  Qe7 {[%clk 0:02:51]} 11. b3 {[%clk 0:02:48]}  Nf8 {[%clk 0:02:39]} 12. Ba3 {[%clk 0:02:39]}  exd4 {[%clk 0:02:35]} 13. Nxd4 {[%clk 0:02:24]}  N6d7 {[%clk 0:02:23]} 14. h3 {[%clk 0:02:03]}  Nc5 {[%clk 0:02:22]} 15. b4 {[%clk 0:01:49]}  Nce6 {[%clk 0:02:20]} 16. Nde2 {[%clk 0:01:49]}  Nd7 {[%clk 0:02:14]} 17. Rac1 {[%clk 0:01:35]}  Ne5 {[%clk 0:02:13]} 18. Qb3 {[%clk 0:01:35]}  h5 {[%clk 0:01:47]} 19. f4 {[%clk 0:01:33]}  Nd7 {[%clk 0:01:47]} 20. Bb2 {[%clk 0:01:15]}  h4 {[%clk 0:01:44]} 21. g4 {[%clk 0:01:16]}  a5 {[%clk 0:01:44]} 22. a3 {[%clk 0:01:16]}  g5 {[%clk 0:01:41]} 23. f5 {[%clk 0:01:10]}  Nf4 {[%clk 0:01:41]} 24. Nxf4 {[%clk 0:01:10]}  gxf4 {[%clk 0:01:42]} 25. Ne2 {[%clk 0:01:10]}  Ne5 {[%clk 0:01:34]} 26. Nxf4 {[%clk 0:01:07]}  Bh6 {[%clk 0:01:34]} 27. Rf1 {[%clk 0:01:06]}  axb4 {[%clk 0:01:34]} 28. axb4 {[%clk 0:01:06]}  Qc7 {[%clk 0:01:08]} 29. Nh5 {[%clk 0:01:00]}  Bg5 {[%clk 0:01:05]} 30. Rcd1 {[%clk 0:00:44]}  Kf8 {[%clk 0:00:59]} 31. Bc1 {[%clk 0:00:43]}  Bxc1 {[%clk 0:00:55]} 32. Rxc1 {[%clk 0:00:44]}  Qb6+ {[%clk 0:00:55]} 33. c5 {[%clk 0:00:39]}  dxc5 {[%clk 0:00:53]} 34. Qe3 {[%clk 0:00:39]}  Nd7 {[%clk 0:00:35]} 35. bxc5 {[%clk 0:00:25]}  Qb2 {[%clk 0:00:32]} 36. f6 {[%clk 0:00:23]}  Re5 {[%clk 0:00:20]} 37. Qh6+ {[%clk 0:00:17]}  Ke8 {[%clk 0:00:20]} 38. Qh8+ {[%clk 0:00:12]}  Nf8 {[%clk 0:00:21]} 39. Ng7+ {[%clk 0:00:12]}  Kd7 {[%clk 0:00:20]} 40. Qxf8 {[%clk 0:00:12]}  Qd2 {[%clk 0:00:12]} 41. Rcd1 {[%clk 0:00:12]}  Ra2 {[%clk 0:00:13]} 42. Rxd2+ {[%clk 0:00:12]}  Rxd2 {[%clk 0:00:14]} 43. Qxf7+ {[%clk 0:00:11]}  Kd8 {[%clk 0:00:14]} 44. Nf5 {[%clk 0:00:09]}  b5 {[%clk 0:00:11]} 45. Nd6 {[%clk 0:00:05]}  Bd7 {[%clk 0:00:10]} 46. Qf8+ {[%clk 0:00:05]}  Kc7 {[%clk 0:00:10]} 47. f7 {[%clk 0:00:05]}  Rxc5 {[%clk 0:00:11]} 48. Ne8+ {[%clk 0:00:05]}  Kb6 {[%clk 0:00:11]} 49. Qxc5+ {[%clk 0:00:06]}  Kxc5 {[%clk 0:00:11]} 50. f8=Q+ {[%clk 0:00:07]}  Kc4 {[%clk 0:00:12]} 51. Nf6 {[%clk 0:00:07]}  Be6 {[%clk 0:00:13]} 52. Qe7 {[%clk 0:00:06]}  Bc8 {[%clk 0:00:11]} 53. Rc1+ {[%clk 0:00:07]}  Kb3 {[%clk 0:00:11]} 54. Qc5 {[%clk 0:00:06]}  Rd3 {[%clk 0:00:10]} 55. Qc2+ {[%clk 0:00:06]}  Kb4 {[%clk 0:00:11]} 56. Qxd3 {[%clk 0:00:06]}  Bxg4 {[%clk 0:00:11]} 57. Qc3+ {[%clk 0:00:06]}  Ka4 {[%clk 0:00:12]} 58. Ra1# {[%clk 0:00:07]} 1-0


[Site "https://www.chess.com"]

[Event "Titled Tuesday Blitz January 25 2022"]
[White "Ibrahimli, Murad"]
[Black "Hamitevici, Vladimir"]
[WhiteFideId "13410229"]
[BlackFideId "13902393"]
[WhiteElo "2109"]
[BlackElo "2359"]
[Result "1-0"]
[Round "06"]
[TimeControl "180+1"]
[Date "2022.01.26"]
[WhiteClock "0:01:07"]
[BlackClock "0:00:29"]

1. d4 {[%clk 0:03:00]}  Nf6 {[%clk 0:02:59]} 2. c4 {[%clk 0:03:00]}  b6 {[%clk 0:03:00]} 3. Nc3 {[%clk 0:02:59]}  Bb7 {[%clk 0:03:00]} 4. Qc2 {[%clk 0:03:00]}  d5 {[%clk 0:03:00]} 5. cxd5 {[%clk 0:03:01]}  Nxd5 {[%clk 0:03:01]} 6. Nf3 {[%clk 0:03:01]}  e6 {[%clk 0:03:00]} 7. e4 {[%clk 0:02:59]}  Nxc3 {[%clk 0:03:00]} 8. bxc3 {[%clk 0:03:00]}  Be7 {[%clk 0:03:00]} 9. Bb5+ {[%clk 0:02:58]}  c6 {[%clk 0:03:00]} 10. Bd3 {[%clk 0:02:59]}  c5 {[%clk 0:03:01]} 11. Bb5+ {[%clk 0:02:58]}  Bc6 {[%clk 0:03:00]} 12. Bxc6+ {[%clk 0:02:41]}  Nxc6 {[%clk 0:03:00]} 13. O-O {[%clk 0:02:39]}  O-O {[%clk 0:02:45]} 14. Qa4 {[%clk 0:02:35]}  Rc8 {[%clk 0:02:38]} 15. Be3 {[%clk 0:02:34]}  cxd4 {[%clk 0:02:33]} 16. cxd4 {[%clk 0:02:34]}  Na5 {[%clk 0:02:30]} 17. Rac1 {[%clk 0:02:33]}  Qe8 {[%clk 0:02:25]} 18. Qd1 {[%clk 0:02:22]}  Qb5 {[%clk 0:02:19]} 19. Ne5 {[%clk 0:02:11]}  f6 {[%clk 0:01:55]} 20. Qg4 {[%clk 0:01:51]}  f5 {[%clk 0:01:55]} 21. exf5 {[%clk 0:01:49]}  exf5 {[%clk 0:01:56]} 22. Qf3 {[%clk 0:01:41]}  Nc4 {[%clk 0:01:13]} 23. Bf4 {[%clk 0:01:14]}  Bf6 {[%clk 0:00:35]} 24. a4 {[%clk 0:01:08]}  Qxa4 {[%clk 0:00:29]} 25. Qd5+ {[%clk 0:01:07]} 1-0


[Site "https://www.chess.com"]

[Event "Titled Tuesday Blitz January 25 2022"]
[White "Janaszak, Dawid"]
[Black "Shipov, Sergei"]
[WhiteFideId "1119206"]
[BlackFideId "4113624"]
[WhiteElo "2199"]
[BlackElo "2770"]
[Result "0-1"]
[Round "06"]
[TimeControl "180+1"]
[Date "2022.01.26"]
[WhiteClock "0:00:00"]
[BlackClock "0:00:17"]

1. e4 {[%clk 0:03:00]}  e6 {[%clk 0:02:59]} 2. d4 {[%clk 0:03:00]}  d5 {[%clk 0:02:59]} 3. Bd3 {[%clk 0:03:01]}  dxe4 {[%clk 0:02:59]} 4. Bxe4 {[%clk 0:03:02]}  Nf6 {[%clk 0:02:59]} 5. Bf3 {[%clk 0:03:02]}  c5 {[%clk 0:02:59]} 6. Ne2 {[%clk 0:03:02]}  Nc6 {[%clk 0:03:00]} 7. Be3 {[%clk 0:03:02]}  cxd4 {[%clk 0:03:00]} 8. Nxd4 {[%clk 0:03:02]}  Ne5 {[%clk 0:03:00]} 9. Nc3 {[%clk 0:03:00]}  a6 {[%clk 0:02:59]} 10. Qe2 {[%clk 0:02:57]}  Nxf3+ {[%clk 0:02:57]} 11. gxf3 {[%clk 0:02:48]}  Bd7 {[%clk 0:02:52]} 12. O-O-O {[%clk 0:02:48]}  Rc8 {[%clk 0:02:52]} 13. Kb1 {[%clk 0:02:43]}  Rxc3 {[%clk 0:01:47]} 14. bxc3 {[%clk 0:02:44]}  Nd5 {[%clk 0:01:46]} 15. Bd2 {[%clk 0:02:32]}  Be7 {[%clk 0:01:45]} 16. Rhg1 {[%clk 0:02:28]}  O-O {[%clk 0:01:39]} 17. Qd3 {[%clk 0:01:52]}  Qb6+ {[%clk 0:01:33]} 18. Ka1 {[%clk 0:01:48]}  Rc8 {[%clk 0:01:33]} 19. f4 {[%clk 0:01:06]}  Bf6 {[%clk 0:01:32]} 20. Rb1 {[%clk 0:00:47]}  Qc7 {[%clk 0:01:28]} 21. Rb3 {[%clk 0:00:44]}  b5 {[%clk 0:01:21]} 22. f5 {[%clk 0:00:36]}  Qxh2 {[%clk 0:00:44]} 23. Qg3 {[%clk 0:00:22]}  Qxg3 {[%clk 0:00:43]} 24. Rxg3 {[%clk 0:00:20]}  exf5 {[%clk 0:00:43]} 25. Bg5 {[%clk 0:00:13]}  Be5 {[%clk 0:00:41]} 26. f4 {[%clk 0:00:13]}  Nxf4 {[%clk 0:00:40]} 27. Re3 {[%clk 0:00:13]}  Bd6 {[%clk 0:00:36]} 28. a4 {[%clk 0:00:12]}  Nd5 {[%clk 0:00:35]} 29. Rf3 {[%clk 0:00:10]}  g6 {[%clk 0:00:34]} 30. axb5 {[%clk 0:00:10]}  axb5 {[%clk 0:00:34]} 31. Nxb5 {[%clk 0:00:10]}  Be5 {[%clk 0:00:33]} 32. Kb2 {[%clk 0:00:11]}  h5 {[%clk 0:00:24]} 33. Bd2 {[%clk 0:00:10]}  Bf6 {[%clk 0:00:22]} 34. Rd3 {[%clk 0:00:10]}  Be6 {[%clk 0:00:22]} 35. Nd4 {[%clk 0:00:10]}  Nc7 {[%clk 0:00:17]} 36. Rb7 {[%clk 0:00:10]}  Bd5 {[%clk 0:00:17]} 37. Ra7 {[%clk 0:00:09]}  Be4 {[%clk 0:00:17]} 38. Rg3 {[%clk 0:00:06]}  Nd5 {[%clk 0:00:17]} 39. Kc1 {[%clk 0:00:03]}  Nb6 {[%clk 0:00:17]} 40. Nb5 {[%clk 0:00:00]}  Nc4 {[%clk 0:00:17]} 0-1


[Site "https://www.chess.com"]

[Event "Titled Tuesday Blitz January 25 2022"]
[White "Jaracz, Pawel"]
[Black "Shevchenko, Kirill"]
[WhiteFideId "1102222"]
[BlackFideId "14129574"]
[WhiteElo "2429"]
[BlackElo "2624"]
[Result "1-0"]
[Round "06"]
[TimeControl "180+1"]
[Date "2022.01.26"]
[WhiteClock "0:00:08"]
[BlackClock "0:00:02"]

1. e4 {[%clk 0:03:00]}  c5 {[%clk 0:02:59]} 2. Nf3 {[%clk 0:03:01]}  d6 {[%clk 0:02:59]} 3. Bc4 {[%clk 0:02:58]}  Nf6 {[%clk 0:02:58]} 4. d3 {[%clk 0:02:58]}  Nc6 {[%clk 0:02:58]} 5. O-O {[%clk 0:02:58]}  g6 {[%clk 0:02:59]} 6. c3 {[%clk 0:02:57]}  Bg7 {[%clk 0:02:56]} 7. Bb3 {[%clk 0:02:57]}  O-O {[%clk 0:02:57]} 8. h3 {[%clk 0:02:57]}  b5 {[%clk 0:02:54]} 9. Re1 {[%clk 0:02:53]}  e5 {[%clk 0:02:51]} 10. d4 {[%clk 0:02:48]}  exd4 {[%clk 0:02:31]} 11. cxd4 {[%clk 0:02:48]}  c4 {[%clk 0:02:31]} 12. Bc2 {[%clk 0:02:48]}  Nb4 {[%clk 0:02:32]} 13. a4 {[%clk 0:02:37]}  bxa4 {[%clk 0:02:01]} 14. Nc3 {[%clk 0:02:33]}  Bb7 {[%clk 0:01:57]} 15. Rxa4 {[%clk 0:02:14]}  a5 {[%clk 0:01:57]} 16. Bf4 {[%clk 0:02:01]}  Re8 {[%clk 0:01:53]} 17. Bb1 {[%clk 0:01:55]}  Qb6 {[%clk 0:01:52]} 18. Qd2 {[%clk 0:01:47]}  Qa6 {[%clk 0:01:31]} 19. Ra3 {[%clk 0:01:42]}  Nd3 {[%clk 0:01:24]} 20. Bxd3 {[%clk 0:01:39]}  cxd3 {[%clk 0:01:25]} 21. e5 {[%clk 0:01:14]}  Nd5 {[%clk 0:01:19]} 22. Nxd5 {[%clk 0:01:14]}  Bxd5 {[%clk 0:01:19]} 23. Rxd3 {[%clk 0:01:13]}  dxe5 {[%clk 0:00:55]} 24. dxe5 {[%clk 0:00:55]}  Bb7 {[%clk 0:00:52]} 25. Rd6 {[%clk 0:00:48]}  Qc4 {[%clk 0:00:51]} 26. Ng5 {[%clk 0:00:41]}  h6 {[%clk 0:00:42]} 27. Rd4 {[%clk 0:00:40]}  Qc6 {[%clk 0:00:40]} 28. Ne4 {[%clk 0:00:32]}  Bxe5 {[%clk 0:00:30]} 29. Bxe5 {[%clk 0:00:32]}  Rxe5 {[%clk 0:00:31]} 30. Qxh6 {[%clk 0:00:25]}  Rae8 {[%clk 0:00:25]} 31. f3 {[%clk 0:00:24]}  f5 {[%clk 0:00:21]} 32. Rd6 {[%clk 0:00:14]}  Rxe4 {[%clk 0:00:10]} 33. Qxg6+ {[%clk 0:00:14]}  Kf8 {[%clk 0:00:11]} 34. Qf6+ {[%clk 0:00:13]}  Kg8 {[%clk 0:00:11]} 35. Qg6+ {[%clk 0:00:14]}  Kh8 {[%clk 0:00:09]} 36. fxe4 {[%clk 0:00:10]}  Qc5+ {[%clk 0:00:07]} 37. Kh1 {[%clk 0:00:10]}  Qe5 {[%clk 0:00:01]} 38. Qh6+ {[%clk 0:00:08]}  Kg8 {[%clk 0:00:02]} 39. Rg6+ {[%clk 0:00:08]}  Kf7 {[%clk 0:00:02]} 40. Qh7+ {[%clk 0:00:08]} 1-0


[Site "https://www.chess.com"]

[Event "Titled Tuesday Blitz January 25 2022"]
[White "Kekic, Armin"]
[Black "Sargsyan, Anna M."]
[WhiteFideId "14401274"]
[BlackFideId "13308130"]
[WhiteElo "2156"]
[BlackElo "2271"]
[Result "0-1"]
[Round "06"]
[TimeControl "180+1"]
[Date "2022.01.26"]
[WhiteClock "0:01:13"]
[BlackClock "0:01:25"]

1. e4 {[%clk 0:03:00]}  c6 {[%clk 0:02:48]} 2. d4 {[%clk 0:02:59]}  d5 {[%clk 0:02:49]} 3. Nc3 {[%clk 0:02:59]}  dxe4 {[%clk 0:02:50]} 4. Nxe4 {[%clk 0:03:00]}  Nd7 {[%clk 0:02:49]} 5. Nf3 {[%clk 0:02:59]}  Ngf6 {[%clk 0:02:48]} 6. Nxf6+ {[%clk 0:02:58]}  Nxf6 {[%clk 0:02:49]} 7. h3 {[%clk 0:02:57]}  Bf5 {[%clk 0:02:49]} 8. Bd3 {[%clk 0:02:57]}  e6 {[%clk 0:02:50]} 9. Bxf5 {[%clk 0:02:57]}  Qa5+ {[%clk 0:02:50]} 10. c3 {[%clk 0:02:55]}  Qxf5 {[%clk 0:02:51]} 11. O-O {[%clk 0:02:55]}  Bd6 {[%clk 0:02:51]} 12. Re1 {[%clk 0:02:54]}  O-O {[%clk 0:02:50]} 13. Qe2 {[%clk 0:02:54]}  c5 {[%clk 0:02:41]} 14. dxc5 {[%clk 0:02:54]}  Bxc5 {[%clk 0:02:41]} 15. Be3 {[%clk 0:02:54]}  Rac8 {[%clk 0:02:37]} 16. Bxc5 {[%clk 0:02:54]}  Qxc5 {[%clk 0:02:38]} 17. Rad1 {[%clk 0:02:52]}  h6 {[%clk 0:02:37]} 18. Rd4 {[%clk 0:02:48]}  Qa5 {[%clk 0:02:34]} 19. a3 {[%clk 0:02:46]}  Qb6 {[%clk 0:02:23]} 20. Red1 {[%clk 0:02:45]}  Nd5 {[%clk 0:02:21]} 21. c4 {[%clk 0:02:41]}  Nf6 {[%clk 0:02:19]} 22. b4 {[%clk 0:02:41]}  a5 {[%clk 0:02:15]} 23. c5 {[%clk 0:02:32]}  Qa7 {[%clk 0:02:14]} 24. Ne5 {[%clk 0:02:32]}  axb4 {[%clk 0:02:14]} 25. axb4 {[%clk 0:02:32]}  Qa3 {[%clk 0:02:10]} 26. Qb5 {[%clk 0:02:23]}  Nd5 {[%clk 0:01:41]} 27. R1d3 {[%clk 0:01:23]}  Qc1+ {[%clk 0:01:39]} 28. Kh2 {[%clk 0:01:21]}  Qe1 {[%clk 0:01:27]} 29. Rf3 {[%clk 0:01:13]}  Qxe5+ {[%clk 0:01:25]} 0-1


[Site "https://www.chess.com"]

[Event "Titled Tuesday Blitz January 25 2022"]
[White "Korchmar, Vasiliy"]
[Black "Perske, Thore"]
[WhiteFideId "24131750"]
[BlackFideId "12902195"]
[WhiteElo "2370"]
[BlackElo "2315"]
[Result "0-1"]
[Round "06"]
[TimeControl "180+1"]
[Date "2022.01.26"]
[WhiteClock "0:00:01"]
[BlackClock "0:00:36"]

1. d4 {[%clk 0:03:00]}  Nf6 {[%clk 0:02:59]} 2. Bf4 {[%clk 0:03:00]}  g6 {[%clk 0:02:59]} 3. Nc3 {[%clk 0:03:00]}  Bg7 {[%clk 0:02:58]} 4. e4 {[%clk 0:03:00]}  d5 {[%clk 0:02:59]} 5. e5 {[%clk 0:02:53]}  Ne4 {[%clk 0:02:58]} 6. Nxe4 {[%clk 0:02:16]}  dxe4 {[%clk 0:02:59]} 7. Ne2 {[%clk 0:02:12]}  c5 {[%clk 0:02:52]} 8. dxc5 {[%clk 0:01:45]}  Qa5+ {[%clk 0:02:41]} 9. Nc3 {[%clk 0:01:45]}  Qxc5 {[%clk 0:02:38]} 10. Qd5 {[%clk 0:01:25]}  Qb6 {[%clk 0:02:21]} 11. Bb5+ {[%clk 0:01:17]}  Nc6 {[%clk 0:02:18]} 12. Qxe4 {[%clk 0:00:59]}  O-O {[%clk 0:02:15]} 13. O-O {[%clk 0:00:52]}  Bf5 {[%clk 0:02:11]} 14. Qa4 {[%clk 0:00:20]}  Nxe5 {[%clk 0:02:08]} 15. Rfe1 {[%clk 0:00:07]}  Nc6 {[%clk 0:02:03]} 16. Nd5 {[%clk 0:00:06]}  Qc5 {[%clk 0:01:47]} 17. Bxc6 {[%clk 0:00:06]}  bxc6 {[%clk 0:01:44]} 18. Nxe7+ {[%clk 0:00:06]}  Kh8 {[%clk 0:01:44]} 19. Qxc6 {[%clk 0:00:04]}  Qxc6 {[%clk 0:01:39]} 20. Nxc6 {[%clk 0:00:05]}  Bxb2 {[%clk 0:01:36]} 21. Rab1 {[%clk 0:00:02]}  Bf6 {[%clk 0:01:31]} 22. Be5 {[%clk 0:00:02]}  Bxe5 {[%clk 0:01:30]} 23. Nxe5 {[%clk 0:00:03]}  f6 {[%clk 0:01:15]} 24. Nd3 {[%clk 0:00:02]}  Rf7 {[%clk 0:01:12]} 25. Red1 {[%clk 0:00:02]}  Rc8 {[%clk 0:01:09]} 26. Rd2 {[%clk 0:00:02]}  Rfc7 {[%clk 0:01:08]} 27. Rc1 {[%clk 0:00:02]}  Bxd3 {[%clk 0:01:05]} 28. Rxd3 {[%clk 0:00:03]}  Rxc2 {[%clk 0:01:05]} 29. Rxc2 {[%clk 0:00:03]}  Rxc2 {[%clk 0:01:06]} 30. g4 {[%clk 0:00:02]}  Rxa2 {[%clk 0:01:05]} 31. Rd7 {[%clk 0:00:02]}  a5 {[%clk 0:01:02]} 32. Kg2 {[%clk 0:00:02]}  g5 {[%clk 0:00:59]} 33. Rf7 {[%clk 0:00:02]}  a4 {[%clk 0:00:56]} 34. Rxf6 {[%clk 0:00:03]}  Kg7 {[%clk 0:00:57]} 35. Ra6 {[%clk 0:00:02]}  a3 {[%clk 0:00:56]} 36. Kf3 {[%clk 0:00:02]}  Ra1 {[%clk 0:00:54]} 37. Ke4 {[%clk 0:00:02]}  a2 {[%clk 0:00:51]} 38. Kf5 {[%clk 0:00:02]}  h6 {[%clk 0:00:50]} 39. h3 {[%clk 0:00:01]}  Kf7 {[%clk 0:00:50]} 40. Ra7+ {[%clk 0:00:01]}  Ke8 {[%clk 0:00:50]} 41. Kg6 {[%clk 0:00:01]}  Rh1 {[%clk 0:00:36]} 0-1


[Site "https://www.chess.com"]